fUSD/lending_fUSD_20260115
["ID","MTS","AMOUNT","RATE_DAILY","PERIOD"]
[402013388,1768457469667,-170.39758941,0.000419,120]
[402013389,1768457469676,-170.39758941,0.000419,120]
[402013390,1768457469685,-170.39758941,0.000419,120]
[402013391,1768457469695,-170.39758941,0.000419,120]
[402013392,1768457469704,-170.39758941,0.000419,120]
[402013393,1768457469714,-267.76401191,0.000419,28]
[402013394,1768457469723,-472.36745609,0.000419,28]
[402013395,1768457469732,-706.63346386,0.000419,28]
[402013396,1768457469741,-170.39758941,0.000419,120]
[402013397,1768457469750,-170.39758941,0.000419,120]
[402013398,1768457469760,-170.39758941,0.000419,120]
[402013399,1768457469770,-170.39758941,0.000419,120]
[402013400,1768457469779,-150.0,0.000419,120]
[402013401,1768457469788,-500.0,0.00041917,30]
[402013402,1768457469798,-500.0,0.00041917,30]
[402013403,1768457469808,-500.0,0.00041917,30]
[402013404,1768457469817,-2107.71,0.00041917,30]
[402013405,1768457469827,-1177.71,0.00041917,30]
[402013406,1768457469836,-1167.2,0.00041917,30]
[402013407,1768457469846,-500.0,0.00041917,30]
[402013408,1768457469855,-628.57,0.00041917,30]
[402013409,1768457469864,-500.0,0.00041917,30]
[402013410,1768457469873,-500.0,0.00041917,30]
[402013411,1768457469883,-500.0,0.00041917,30]
[402013412,1768457469891,-500.0,0.00041917,30]
[402013413,1768457469900,-500.0,0.00041917,30]
[402013414,1768457469910,-1907.56,0.00041917,30]
[402013415,1768457469919,-432.86464302,0.00041917,30]
[402013416,1768457469928,-500.0,0.00041917,30]
[402013417,1768457469937,-500.0,0.00041917,30]
[402013418,1768457469946,-735.49,0.00041917,30]
[402013419,1768457469955,-500.0,0.00041917,30]
[402013420,1768457469964,-500.0,0.00041917,30]
[402013421,1768457469973,-604.32,0.00041917,30]
[402013422,1768457469982,-500.0,0.00041917,30]
[402013423,1768457469991,-1339.02,0.00041917,30]
[402013424,1768457470000,-886.01,0.00041917,30]
[402013425,1768457470009,-1088.1,0.00041917,30]
[402013426,1768457470018,-500.0,0.00041917,30]
[402013427,1768457470027,-500.0,0.00041917,30]
[402013428,1768457470036,-983.37,0.00041917,30]
[402013429,1768457470046,-500.0,0.00041917,30]
[402013430,1768457470055,-674.5,0.00041917,30]
[402013431,1768457470065,-500.0,0.00041917,30]
[402013432,1768457470074,-500.0,0.00041917,30]
[402013433,1768457470083,-500.0,0.00041917,30]
[402013434,1768457470092,-500.0,0.00041917,30]
[402013435,1768457470101,-500.0,0.00041917,30]
[402013436,1768457470111,-500.0,0.00041917,30]
[402013437,1768457470120,-500.0,0.00041917,30]
[402013438,1768457470129,-500.0,0.00041917,30]
[402013439,1768457470138,-500.0,0.00041917,30]
[402013440,1768457470147,-743.87,0.00041917,30]
[402013441,1768457470156,-500.0,0.00041917,30]
[402013442,1768457470165,-419.51876453,0.00041917,30]
[402013443,1768457470175,-853.93,0.00041917,30]
[402013444,1768457470184,-909.07,0.00041917,30]
[402013445,1768457470193,-500.0,0.00041917,30]
[402013446,1768457470203,-1042.15,0.00041917,30]
[402013447,1768457470213,-500.0,0.00041917,30]
[402013448,1768457470223,-500.0,0.00041917,30]
[402013449,1768457470233,-500.0,0.00041917,30]
[402013450,1768457470243,-1702.33,0.00041917,30]
[402013451,1768457470253,-500.0,0.00041917,30]
[402013452,1768457470262,-523.98,0.00041917,30]
[402013453,1768457470272,-1421.39,0.00041917,30]
[402013454,1768457470282,-500.0,0.00041917,30]
[402013455,1768457470292,-500.0,0.00041917,30]
[402013456,1768457470301,-500.0,0.00041917,30]
[402013457,1768457470311,-500.0,0.00041917,30]
[402013458,1768457470320,-574.11,0.00041917,30]
[402013459,1768457470329,-660.29,0.00041917,30]
[402013460,1768457470339,-500.0,0.00041917,30]
[402013461,1768457470348,-500.0,0.00041917,30]
[402013462,1768457470357,-748.92,0.00041917,30]
[402013463,1768457470367,-500.0,0.00041917,30]
[402013464,1768457470377,-732.75,0.00041917,30]
[402013465,1768457470386,-1597.45,0.00041917,30]
[402013466,1768457470396,-1061.88,0.00041917,30]
[402013467,1768457470406,-500.0,0.00041917,30]
[402013468,1768457470415,-273.14704989,0.00041917,30]
[402013469,1768457470425,-500.0,0.00041917,30]
[402013470,1768457470435,-500.0,0.00041917,120]
[402013471,1768457470445,-500.0,0.00041917,30]
[402013472,1768457470456,-500.0,0.00041917,30]
[402013473,1768457470466,-500.0,0.00041917,30]
[402013474,1768457470476,-1002.17,0.00041917,30]
[402013475,1768457470486,-500.0,0.00041917,30]
[402013476,1768457470495,-1086.92,0.00041917,30]
[402013477,1768457470505,-500.0,0.00041917,30]
[402013478,1768457470516,-740.22,0.00041917,30]
[402013479,1768457470526,-502.99694221,0.00041917,30]
[402013480,1768457470536,-1199.64,0.00041917,30]
[402013481,1768457470546,-770.55,0.00041917,30]
[402013482,1768457470555,-500.0,0.00041917,30]
[402013483,1768457470565,-704.74,0.00041917,30]
[402013484,1768457470575,-500.0,0.00041917,30]
[402013485,1768457470585,-500.0,0.00041917,30]
[402013486,1768457470595,-500.0,0.00041917,30]
[402013487,1768457470604,-173.33670958,0.00041917,30]
[402013488,1768457470614,-500.0,0.00041917,30]
[402013489,1768457470624,-572.08,0.00041917,30]
[402013490,1768457470633,-500.0,0.00041917,30]
[402013491,1768457470643,-500.0,0.00041917,30]
[402013492,1768457470652,-500.0,0.00041917,30]
[402013493,1768457470661,-500.0,0.00041917,30]
[402013494,1768457470671,-500.0,0.00041917,30]
[402013495,1768457470680,-811.03,0.00041917,30]
[402013496,1768457470690,-602.56,0.00041917,30]
[402013497,1768457470700,-500.0,0.00041917,30]
[402013498,1768457470709,-500.0,0.00041917,30]
[402013499,1768457470719,-500.0,0.00041917,30]
[402013500,1768457470729,-896.57,0.00041917,30]
[402013501,1768457470739,-1890.27,0.00041917,30]
[402013502,1768457470748,-500.0,0.00041917,30]
[402013503,1768457470758,-500.0,0.00041917,30]
[402013504,1768457470767,-1386.02,0.00041917,30]
[402013505,1768457470777,-718.4,0.00041917,30]
[402013506,1768457470786,-500.0,0.00041917,30]
[402013507,1768457470796,-1068.57,0.00041917,30]
[402013508,1768457470806,-1298.61,0.00041917,30]
[402013509,1768457470815,-638.04,0.00041917,30]
[402013510,1768457470825,-1240.73,0.00041917,30]
[402013511,1768457470834,-609.93,0.00041917,30]
[402013512,1768457470844,-500.0,0.00041917,30]
[402013513,1768457470854,-500.0,0.00041917,30]
[402013514,1768457470863,-1206.76,0.00041917,30]
[402013515,1768457470873,-1566.49,0.00041917,30]
[402013516,1768457470882,-1517.9,0.00041917,30]
[402013517,1768457470892,-769.13,0.00041917,30]
[402013518,1768457470901,-500.0,0.00041917,30]
[402013519,1768457470911,-1710.93,0.00041917,30]
[402013520,1768457470921,-500.0,0.00041917,30]
[402013521,1768457470931,-500.0,0.00041917,30]
[402013522,1768457470940,-521.36,0.00041917,30]
[402013523,1768457470949,-938.43,0.00041917,30]
[402013524,1768457470960,-500.0,0.00041917,30]
[402013525,1768457470970,-500.0,0.00041917,30]
[402013526,1768457470980,-500.0,0.00041917,30]
[402013527,1768457470990,-607.07,0.00041917,30]
[402013528,1768457471000,-500.0,0.00041917,30]
[402013529,1768457471009,-1229.77,0.00041917,30]
[402013530,1768457471019,-1115.2,0.00041917,30]
[402013531,1768457471029,-500.0,0.00041917,30]
[402013532,1768457471038,-1053.01,0.00041917,30]
[402013533,1768457471048,-500.0,0.00041917,30]
[402013534,1768457471058,-500.0,0.00041917,30]
[402013535,1768457471067,-616.53,0.00041917,30]
[402013536,1768457471077,-500.0,0.00041917,30]
[402013537,1768457471087,-500.0,0.00041917,30]
[402013538,1768457471096,-500.0,0.00041917,30]
[402013539,1768457471106,-500.0,0.00041917,30]
[402013540,1768457471116,-500.0,0.00041917,30]
[402013541,1768457471126,-1422.71,0.00041917,30]
[402013542,1768457471136,-500.0,0.00041917,30]
[402013543,1768457471146,-697.43,0.00041917,30]
[402013544,1768457471155,-537.92,0.00041917,30]
[402013545,1768457471165,-500.0,0.00041917,30]
[402013546,1768457471175,-500.0,0.00041917,30]
[402013547,1768457471185,-500.0,0.00041917,30]
[402013548,1768457471195,-500.0,0.00041917,30]
[402013549,1768457471204,-906.97,0.00041917,30]
[402013550,1768457471214,-1326.85,0.00041917,30]
[402013551,1768457471224,-1026.32,0.00041917,30]
[402013552,1768457471234,-1784.09,0.00041917,30]
[402013553,1768457471244,-500.0,0.00041917,30]
[402013554,1768457471254,-729.1,0.00041917,30]
[402013555,1768457471264,-1054.68,0.00041917,30]
[402013556,1768457471274,-356.64120719,0.00041917,30]
[402013557,1768457471284,-532.17650773,0.00041917,30]
[402013558,1768457471293,-800.84,0.00041917,30]
[402013559,1768457471303,-500.0,0.00041917,30]
[402013560,1768457471312,-630.13,0.00041917,30]
[402013561,1768457471322,-535.97,0.00041917,30]
[402013562,1768457471332,-1180.97,0.00041917,30]
[402013563,1768457471341,-500.0,0.00041917,30]
[402013564,1768457471350,-500.0,0.00041917,30]
[402013565,1768457471359,-500.0,0.00041917,30]
[402013566,1768457471369,-928.26,0.00041917,30]
[402013567,1768457471378,-1711.76,0.00041917,30]
[402013568,1768457471388,-500.0,0.00041917,30]
[402013569,1768457471398,-740.9,0.00041917,30]
[402013570,1768457471407,-500.0,0.00041917,30]
[402013571,1768457471416,-500.0,0.00041917,30]
[402013572,1768457471426,-673.04,0.00041917,30]
[402013573,1768457471435,-500.0,0.00041917,30]
[402013574,1768457471445,-654.84,0.00041917,30]
[402013575,1768457471457,-1936.32,0.00041917,30]
[402013576,1768457471466,-751.99,0.00041917,30]
[402013577,1768457471477,-830.8,0.00041917,30]
[402013578,1768457471487,-552.47,0.00041917,30]
[402013579,1768457471497,-2332.24,0.00041917,30]
[402013580,1768457471507,-500.0,0.00041917,30]
[402013581,1768457471516,-500.0,0.00041917,30]
[402013582,1768457471527,-500.0,0.00041917,30]
[402013583,1768457471537,-500.0,0.00041917,30]
[402013584,1768457471546,-818.1,0.00041917,30]
[402013585,1768457471556,-958.62,0.00041917,30]
[402013586,1768457471565,-500.0,0.00041917,30]
[402013587,1768457471575,-500.0,0.00041917,30]
[402013588,1768457471585,-1101.7,0.00041917,30]
[402013589,1768457471594,-911.12,0.00041917,30]
[402013590,1768457471604,-500.0,0.00041917,30]
[402013591,1768457471614,-1650.49,0.00041917,30]
[402013592,1768457471624,-1408.98,0.00041917,30]
[402013593,1768457471633,-715.68,0.00041917,30]
[402013594,1768457471643,-500.0,0.00041917,30]
[402013595,1768457471653,-1989.42,0.00041917,30]
[402013596,1768457471663,-1160.78,0.00041917,30]
[402013597,1768457471673,-500.0,0.00041917,30]
[402013598,1768457471683,-1427.17,0.00041917,30]
[402013599,1768457471693,-500.0,0.00041917,30]
[402013600,1768457471703,-745.24,0.00041917,30]
[402013601,1768457471712,-621.77,0.00041917,30]
[402013602,1768457471722,-500.0,0.00041917,30]
[402013603,1768457471732,-500.0,0.00041917,30]
[402013604,1768457471743,-1198.51,0.00041917,30]
[402013605,1768457471752,-500.0,0.00041917,30]
[402013606,1768457471762,-500.0,0.00041917,30]
[402013607,1768457471773,-500.0,0.00041917,30]
[402013608,1768457471783,-500.0,0.00041917,30]
[402013609,1768457471793,-860.1,0.00041917,30]
[402013610,1768457471803,-1460.4,0.00041917,30]
[402013611,1768457471813,-1354.65,0.00041917,30]
[402013612,1768457471823,-978.4,0.00041917,30]
[402013613,1768457471833,-1741.15,0.00041917,30]
[402013614,1768457471843,-500.0,0.00041917,30]
[402013615,1768457471853,-500.0,0.00041917,30]
[402013616,1768457471863,-500.0,0.00041917,30]
[402013617,1768457471872,-1576.1,0.00041917,30]
[402013618,1768457471882,-1002.88,0.00041917,30]
[402013619,1768457471891,-500.0,0.00041917,30]
[402013620,1768457471901,-571.33924595,0.00041917,30]
[402013621,1768457471911,-748.64,0.00041917,30]
[402013622,1768457471921,-500.0,0.00041917,30]
[402013623,1768457471931,-500.0,0.00041917,30]
[402013624,1768457471940,-622.54,0.00041917,30]
[402013625,1768457471950,-500.0,0.00041917,30]
[402013626,1768457471959,-500.0,0.00041917,30]
[402013627,1768457471968,-699.12,0.00041917,30]
[402013628,1768457471978,-500.0,0.00041917,30]
[402013629,1768457471987,-500.0,0.00041917,30]
[402013630,1768457471997,-500.0,0.00041917,30]
[402013631,1768457472007,-622.07584996,0.00041917,30]
[402013632,1768457472017,-1624.09,0.00041917,30]
[402013633,1768457472026,-1127.48,0.00041917,30]
[402013634,1768457472036,-638.02,0.00041917,30]
[402013635,1768457472046,-1294.69,0.00041917,30]
[402013636,1768457472056,-500.0,0.00041917,30]
[402013637,1768457472066,-500.0,0.00041917,30]
[402013638,1768457472076,-500.0,0.00041917,30]
[402013639,1768457472085,-500.0,0.00041917,30]
[402013640,1768457472095,-500.0,0.00041917,30]
[402013641,1768457472105,-1709.04,0.00041917,30]
[402013642,1768457472115,-500.0,0.00041917,30]
[402013643,1768457472125,-745.59,0.00041917,30]
[402013644,1768457472134,-648.47,0.00041917,30]
[402013645,1768457472144,-500.0,0.00041917,30]
[402013646,1768457472154,-881.72,0.00041917,30]
[402013647,1768457472163,-1743.2,0.00041917,30]
[402013648,1768457472173,-186.88102597,0.00041917,30]
[402013649,1768457472182,-500.0,0.00041917,30]
[402013650,1768457472191,-500.0,0.00041917,30]
[402013651,1768457472201,-500.0,0.00041917,30]
[402013652,1768457472210,-500.0,0.00041917,30]
[402013653,1768457472220,-500.0,0.00041917,30]
[402013654,1768457472230,-1106.16,0.00041917,30]
[402013655,1768457472239,-1531.28,0.00041917,30]
[402013656,1768457472249,-500.0,0.00041917,30]
[402013657,1768457472259,-637.09,0.00041917,30]
[402013658,1768457472268,-500.0,0.00041917,30]
[402013659,1768457472278,-542.37,0.00041917,30]
[402013660,1768457472287,-500.0,0.00041917,30]
[402013661,1768457472297,-412.89064194,0.00041917,30]
[402013662,1768457472307,-922.92,0.00041917,30]
[402013663,1768457472579,-500.0,0.00041917,30]
[402013664,1768457472589,-539.51,0.00041917,30]
[402013665,1768457472598,-1439.05,0.00041917,30]
[402013666,1768457472607,-522.0553573,0.00041917,30]
[402013667,1768457472616,-500.0,0.00041917,30]
[402013668,1768457472626,-657.42,0.00041917,30]
[402013669,1768457472635,-569.08,0.00041917,30]
[402013670,1768457472644,-1636.62,0.00041917,30]
[402013671,1768457472653,-502.99,0.00041917,30]
[402013672,1768457472663,-500.0,0.00041917,30]
[402013673,1768457472672,-905.48,0.00041917,30]
[402013674,1768457472681,-783.43,0.00041917,30]
[402013675,1768457472690,-519.80962277,0.00041917,30]
[402013676,1768457472699,-500.0,0.00041917,30]
[402013677,1768457472709,-1000.0,0.00041917,30]
[402013678,1768457472718,-500.0,0.00041917,30]
[402013679,1768457472727,-500.0,0.00041917,30]
[402013680,1768457472736,-500.0,0.00041917,30]
[402013681,1768457472745,-722.32,0.00041917,30]
[402013682,1768457472754,-500.0,0.00041917,30]
[402013683,1768457472763,-1308.45,0.00041917,30]
[402013684,1768457472772,-1084.94,0.00041917,30]
[402013685,1768457472781,-1026.1,0.00041917,30]
[402013686,1768457472790,-354.8855258,0.00041917,30]
[402013687,1768457472799,-1466.71,0.00041917,30]
[402013688,1768457472809,-458.03713912,0.00041917,30]
[402013689,1768457472818,-322.98,0.00041917,30]
[402013690,1768457472827,-931.54,0.00041917,30]
[402013691,1768457472836,-500.0,0.00041917,30]
[402013692,1768457472846,-500.0,0.00041917,30]
[402013693,1768457472855,-500.0,0.00041917,30]
[402013694,1768457472864,-500.0,0.00041917,30]
[402013695,1768457472873,-500.0,0.00041917,30]
[402013696,1768457472883,-1119.98,0.00041917,30]
[402013697,1768457472893,-249.07764836,0.00041917,30]
[402013698,1768457472903,-500.0,0.00041917,30]
[402013699,1768457472912,-1319.17,0.00041917,30]
[402013700,1768457472921,-500.0,0.00041917,30]
[402013701,1768457472930,-500.0,0.00041917,30]
[402013702,1768457472939,-543.44,0.00041917,30]
[402013703,1768457472949,-742.69,0.00041917,30]
[402013704,1768457472958,-500.0,0.00041917,30]
[402013705,1768457472967,-825.77,0.00041917,30]
[402013706,1768457472977,-1075.79,0.00041917,30]
[402013707,1768457472986,-500.0,0.00041917,30]
[402013708,1768457472995,-744.89,0.00041917,30]
[402013709,1768457473004,-1207.72,0.00041917,30]
[402013710,1768457473014,-500.0,0.00041917,30]
[402013711,1768457473023,-543.97,0.00041917,30]
[402013712,1768457473033,-574.43,0.00041917,30]
[402013713,1768457473042,-500.0,0.00041917,30]
[402013714,1768457473051,-517.17,0.00041917,30]
[402013715,1768457473060,-500.0,0.00041917,30]
[402013716,1768457473070,-500.0,0.00041917,30]
[402013717,1768457473079,-500.0,0.00041917,30]
[402013718,1768457473089,-500.0,0.00041917,30]
[402013719,1768457473098,-576.51,0.00041917,30]
[402013720,1768457473108,-1097.87,0.00041917,30]
[402013721,1768457473118,-1226.97,0.00041917,30]
[402013722,1768457473128,-500.0,0.00041917,30]
[402013723,1768457473137,-700.68,0.00041917,30]
[402013724,1768457473146,-500.0,0.00041917,30]
[402013725,1768457473155,-704.19,0.00041917,30]
[402013726,1768457473164,-500.0,0.00041917,30]
[402013727,1768457473174,-500.0,0.00041917,30]
[402013728,1768457473183,-500.0,0.00041917,30]
[402013729,1768457473192,-576.79,0.00041917,30]
[402013730,1768457473201,-500.0,0.00041917,30]
[402013731,1768457473211,-500.0,0.00041917,30]
[402013732,1768457473220,-500.0,0.00041917,30]
[402013733,1768457473229,-237.617073,0.00041917,30]
[402013734,1768457473238,-281.379602,0.00041917,30]
[402013735,1768457473247,-640.07,0.00041917,30]
[402013736,1768457473257,-730.39,0.00041917,30]
[402013737,1768457473266,-725.61,0.00041917,30]
[402013738,1768457473275,-500.0,0.00041917,30]
[402013739,1768457473285,-500.0,0.00041917,30]
[402013740,1768457473294,-565.67588664,0.00041917,14]
[402013741,1768457473303,-500.0,0.00041917,30]
[402013742,1768457473312,-500.0,0.00041917,30]
[402013743,1768457473323,-1152.85,0.00041917,30]
[402013744,1768457473332,-753.16,0.00041917,30]
[402013745,1768457473341,-1050.4,0.00041917,30]
[402013746,1768457473350,-500.0,0.00041917,30]
[402013747,1768457473359,-633.08,0.00041917,30]
[402013748,1768457473368,-500.0,0.00041917,30]
[402013749,1768457473377,-1625.84,0.00041917,30]
[402013750,1768457473386,-500.0,0.00041917,30]
[402013751,1768457473396,-1064.77,0.00041917,30]
[402013752,1768457473406,-1507.14,0.00041917,30]
[402013753,1768457473415,-500.0,0.00041917,30]
[402013754,1768457473426,-500.0,0.00041917,30]
[402013755,1768457473435,-1074.82,0.00041917,30]
[402013756,1768457473447,-758.89,0.00041917,30]
[402013757,1768457473457,-500.0,0.00041917,30]
[402013758,1768457473467,-500.0,0.00041917,30]
[402013759,1768457473477,-1456.69,0.00041917,30]
[402013760,1768457473486,-1014.8,0.00041917,30]
[402013761,1768457473495,-625.93,0.00041917,30]
[402013762,1768457473505,-623.16,0.00041917,30]
[402013763,1768457473515,-489.81589104,0.00041917,30]
[402013764,1768457473525,-500.0,0.00041917,30]
[402013765,1768457473534,-523.15,0.00041917,30]
[402013766,1768457473545,-1093.9,0.00041917,30]
[402013767,1768457473555,-700.27,0.00041917,30]
[402013768,1768457473564,-1131.87,0.00041917,30]
[402013769,1768457473574,-301.12044666,0.00041917,30]
[402013770,1768457473583,-1256.56,0.00041917,30]
[402013771,1768457473593,-500.0,0.00041917,30]
[402013772,1768457473602,-500.0,0.00041917,30]
[402013773,1768457473611,-500.0,0.00041917,30]
[402013774,1768457473621,-500.0,0.00041917,30]
[402013775,1768457473631,-500.0,0.00041917,30]
[402013776,1768457473641,-1619.29,0.00041917,30]
[402013777,1768457473650,-1177.88,0.00041917,30]
[402013778,1768457473662,-577.5,0.00041917,30]
[402013779,1768457473672,-2469.66,0.00041917,30]
[402013780,1768457473681,-500.0,0.00041917,30]
[402013781,1768457473691,-696.27,0.00041917,30]
[402013782,1768457473700,-1065.52,0.00041917,30]
[402013783,1768457473709,-1113.96,0.00041917,30]
[402013784,1768457473718,-500.0,0.00041917,30]
[402013785,1768457473728,-500.0,0.00041917,30]
[402013786,1768457473738,-150.978527,0.00041917,30]
[402013787,1768457473747,-500.0,0.00041917,30]
[402013788,1768457473758,-1532.77,0.00041917,30]
[402013789,1768457473767,-656.74,0.00041917,30]
[402013790,1768457473777,-500.0,0.00041917,30]
[402013791,1768457473787,-500.0,0.00041917,30]
[402013792,1768457473797,-1909.11,0.00041917,30]
[402013793,1768457473807,-1649.65,0.00041917,30]
[402013794,1768457473817,-1094.73,0.00041917,30]
[402013795,1768457473827,-500.0,0.00041917,30]
[402013796,1768457473836,-500.0,0.00041917,30]
[402013797,1768457473846,-500.0,0.00041917,30]
[402013798,1768457473855,-836.24,0.00041917,30]
[402013799,1768457473865,-1286.49,0.00041917,30]
[402013800,1768457473875,-1255.25,0.00041917,30]
[402013801,1768457473884,-689.07,0.00041917,30]
[402013802,1768457473894,-856.16,0.00041917,30]
[402013803,1768457473903,-928.74,0.00041917,30]
[402013804,1768457473912,-500.0,0.00041917,30]
[402013805,1768457473921,-854.21,0.00041917,30]
[402013806,1768457473930,-500.0,0.00041917,30]
[402013807,1768457473940,-500.0,0.00041917,30]
[402013808,1768457473949,-641.44,0.00041917,30]
[402013809,1768457473958,-500.0,0.00041917,30]
[402013810,1768457473968,-500.0,0.00041917,30]
[402013811,1768457473979,-1035.01,0.00041917,30]
[402013812,1768457473989,-500.0,0.00041917,30]
[402013813,1768457473998,-171.88847017,0.00041917,30]
[402013814,1768457474008,-1549.97,0.00041917,30]
[402013815,1768457474018,-2042.01,0.00041917,30]
[402013816,1768457474028,-500.0,0.00041917,30]
[402013817,1768457474038,-500.0,0.00041917,30]
[402013818,1768457474047,-500.0,0.00041917,30]
[402013819,1768457474057,-997.92,0.00041917,30]
[402013820,1768457474067,-697.4,0.00041917,30]
[402013821,1768457474076,-954.82,0.00041917,30]
[402013822,1768457474086,-500.0,0.00041917,30]
[402013823,1768457474095,-500.0,0.00041917,30]
[402013824,1768457474104,-500.0,0.00041917,30]
[402013825,1768457474114,-671.07,0.00041917,30]
[402013826,1768457474123,-500.0,0.00041917,30]
[402013827,1768457474133,-745.16,0.00041917,30]
[402013828,1768457474142,-1288.81,0.00041917,30]
[402013829,1768457474151,-1195.19,0.00041917,30]
[402013830,1768457474160,-516.61,0.00041917,30]
[402013831,1768457474169,-679.62,0.00041917,30]
[402013832,1768457474178,-500.0,0.00041917,30]
[402013833,1768457474187,-1568.66,0.00041917,30]
[402013834,1768457474195,-556.66,0.00041917,30]
[402013835,1768457474205,-1135.41,0.00041917,30]
[402013836,1768457474214,-544.3,0.00041917,30]
[402013837,1768457474223,-1444.3,0.00041917,30]
[402013838,1768457474233,-500.0,0.00041917,30]
[402013839,1768457474243,-500.0,0.00041917,30]
[402013840,1768457474252,-500.0,0.00041917,30]
[402013841,1768457474260,-750.18,0.00041917,30]
[402013842,1768457474270,-500.0,0.00041917,30]
[402013843,1768457474280,-500.0,0.00041917,30]
[402013844,1768457474288,-500.0,0.00041917,30]
[402013845,1768457474297,-760.26,0.00041917,30]
[402013846,1768457474307,-500.0,0.00041917,30]
[402013847,1768457474316,-500.0,0.00041917,30]
[402013848,1768457474326,-295.8572617,0.00041917,30]
[402013849,1768457474336,-500.0,0.00041917,30]
[402013850,1768457474345,-500.0,0.00041917,30]
[402013851,1768457474355,-1319.37,0.00041917,30]
[402013852,1768457474364,-621.65,0.00041917,30]
[402013853,1768457474374,-673.22,0.00041917,30]
[402013854,1768457474383,-500.0,0.00041917,30]
[402013855,1768457474392,-1102.95,0.00041917,30]
[402013856,1768457474401,-500.0,0.00041917,30]
[402013857,1768457474410,-500.0,0.00041917,30]
[402013858,1768457474420,-500.0,0.00041917,30]
[402013859,1768457474429,-500.0,0.00041917,30]
[402013860,1768457474439,-1081.74,0.00041917,30]
[402013861,1768457474452,-500.0,0.00041917,30]
[402013862,1768457474462,-500.0,0.00041917,30]
[402013863,1768457474471,-228.63230534,0.00041917,30]
[402013864,1768457474481,-793.57,0.00041917,30]
[402013865,1768457474492,-1563.9,0.00041917,30]
[402013866,1768457474502,-500.0,0.00041917,30]
[402013867,1768457474511,-662.47,0.00041917,30]
[402013868,1768457474522,-500.0,0.00041917,30]
[402013869,1768457474531,-1409.31,0.00041917,30]
[402013870,1768457474541,-500.0,0.00041917,30]
[402013871,1768457474550,-1608.8,0.00041917,30]
[402013872,1768457474559,-500.0,0.00041917,30]
[402013873,1768457474569,-500.0,0.00041917,30]
[402013874,1768457474578,-500.0,0.00041917,30]
[402013875,1768457474588,-607.43,0.00041917,30]
[402013876,1768457474598,-941.55,0.00041917,30]
[402013877,1768457474608,-500.0,0.00041917,30]
[402013878,1768457474618,-642.98259737,0.00041917,30]
[402013879,1768457474627,-500.0,0.00041917,30]
[402013880,1768457474636,-500.0,0.00041917,30]
[402013881,1768457474646,-946.59,0.00041917,30]
[402013882,1768457474655,-500.0,0.00041917,30]
[402013883,1768457474664,-500.0,0.00041917,30]
[402013884,1768457474674,-500.56,0.00041917,30]
[402013885,1768457474683,-526.09,0.00041917,30]
[402013886,1768457474692,-500.0,0.00041917,30]
[402013887,1768457474701,-681.52,0.00041917,30]